bitfinex/quotes_ETHUSD_20241120
["timestamp","ask_amount","ask_price","bid_price","bid_amount"]
[1732111569622,8.08618933,3122.0,3121.5,3.20353]
[1732111569826,1.12892593,3121.8,3121.3,3.20371]
[1732111569992,11.28933933,3122.0,3121.3,3.20371]
[1732111570331,0.01,3122.2,3121.2,0.7614]
[1732111570332,4.00099896,3122.2,3121.6,3.20347]
[1732111570624,3.53611048,3122.2,3121.6,3.20347]
[1732111570785,0.33318048,3122.2,3121.6,3.2034]
[1732111570972,3.53611048,3122.2,3121.6,3.2034]
[1732111571320,0.75371094,3122.1,3121.6,3.2034]
[1732111571569,3.0,3122.1,3121.4,3.20364]
[1732111571735,0.33318048,3122.2,3121.2,0.7614]
[1732111571882,0.33318048,3122.2,3122.1,3.20297]
[1732111572072,0.33318048,3122.2,3122.0,3.20306]
[1732111572278,0.33318048,3122.2,3122.1,3.20297]
[1732111572478,12.06744,3122.7,3122.4,3.20265]
[1732111572479,0.3094,3122.7,3122.4,3.20265]
[1732111572720,0.005,3122.7,3122.4,3.20265]
[1732111573021,0.005,3122.7,3122.3,3.20268]
[1732111573223,3.58106904,3122.6,3122.1,3.20296]
[1732111573577,3.58106904,3122.6,3121.9,4.01369]
[1732111573781,0.37857904,3122.6,3122.2,3.20284]
[1732111574128,0.3586069,3122.5,3122.2,3.20277]
[1732111574294,0.3586069,3122.5,3122.3,3.20271]
[1732111574626,0.005,3122.7,3122.4,3.20259]
[1732111574779,0.005,3122.7,3121.9,4.01373]
[1732111574977,0.005,3122.7,3122.2,3.20283]
[1732111575432,0.005,3122.7,3122.3,3.20276]
[1732111575634,0.005,3122.7,3122.4,3.20259]
[1732111575833,0.005,3122.7,3122.5,3.20253]
[1732111575997,0.005,3122.7,3122.6,3.20245]
[1732111576517,0.005,3122.7,3122.6,4.656548]
[1732111576881,0.005,3122.7,3122.6,8.206548]
[1732111577324,0.005,3122.7,3122.6,7.656548]
[1732111577915,0.005,3122.7,3122.6,8.206548]
[1732111579257,0.005,3122.7,3122.6,7.656548]
[1732111579841,0.005,3122.7,3122.6,8.206548]
[1732111580452,1e-05,3122.7,3122.6,8.226548]
[1732111580634,12.06011,3124.9,3124.2,3.20079]
[1732111580837,3.19998,3125.1,3124.5,3.20049]
[1732111581135,3.19998,3125.1,3124.2,3.20073]
[1732111581136,3.20018,3124.9,3124.2,3.20073]
[1732111581343,3.20018,3124.9,3124.3,3.20071]
[1732111581536,3.1998,3125.2,3124.5,3.20044]
[1732111581741,3.55022,3125.2,3124.4,3.99569]
[1732111581913,3.55022,3125.2,3124.5,3.2005]
[1732111582267,0.35042,3125.2,3124.7,3.20028]
[1732111582883,0.35042,3125.2,3124.5,3.2005]
[1732111583013,0.35042,3125.2,3124.6,3.2003]
[1732111583212,3.78079037,3125.6,3125.1,3.19988]
[1732111583452,3.19939,3125.6,3125.0,3.19999]
[1732111583669,3.19962,3125.4,3124.7,3.20027]
[1732111583837,3.19939,3125.6,3124.7,3.20027]
[1732111584154,3.53372889,3125.5,3124.4,0.82709913]
[1732111584357,3.19948,3125.5,3124.9,3.20006]
[1732111584917,3.19948,3125.5,3124.4,0.7951]
[1732111584918,3.3423989,3125.7,3125.0,3.19999]
[1732111585259,3.3423989,3125.7,3125.2,3.98193]
[1732111585260,0.1430989,3125.7,3125.2,3.98193]
[1732111585560,3.3424789,3125.7,3125.2,0.7822]
[1732111585752,0.33424789,3125.6,3125.2,0.7822]
[1732111586118,0.1430989,3125.7,3125.2,0.7822]
[1732111586322,0.1430989,3125.7,3125.6,3.19938]
[1732111588044,0.1430989,3125.7,3125.6,4.02888]
[1732111589173,0.1430989,3125.7,3125.6,4.57888]
[1732111589324,0.1430989,3125.7,3125.6,5.37061113]
[1732111589861,0.1430989,3125.7,3125.6,4.81061113]
[1732111590161,0.1430989,3125.7,3125.6,4.02888]
[1732111591172,0.1430989,3125.7,3125.6,4.58888]
[1732111591475,0.1430989,3125.7,3125.6,6.18858]
[1732111591767,0.1430989,3125.7,3125.6,5.62858]
[1732111592326,0.1430989,3125.7,3125.6,6.51558572]
[1732111593761,0.1430989,3125.7,3125.6,2.4292]
[1732111593930,0.1430989,3125.7,3125.6,5.62858]
[1732111594356,0.1430989,3125.7,3125.6,1.5997]
[1732111594836,0.1430989,3125.7,3125.6,5.62868]
[1732111595357,0.1430989,3125.7,3125.6,5.67059631]
[1732111595555,3.19801,3127.0,3125.6,5.67059631]
[1732111595556,3.19801,3127.0,3126.3,4.02821]
[1732111595876,3.19779,3127.2,3126.3,4.02819]
[1732111596078,3.1977,3127.3,3126.5,3.1984]
[1732111596262,0.12215824,3127.5,3126.4,3.601329]
[1732111596466,3.19771,3127.3,3126.6,3.19833]
[1732111596638,3.19788,3127.1,3126.4,3.601381]
[1732111596834,3.19857,3126.4,3125.8,3.19914]
[1732111597037,0.3044,3127.0,3125.7,0.03198698]
[1732111597038,3.19805,3126.9,3125.7,0.03198698]
[1732111597274,3.19818,3126.8,3126.2,3.19877]
[1732111597579,3.19843,3126.6,3126.0,3.19896]
[1732111597745,3.19843,3126.6,3125.9,4.02356]
[1732111597949,3.19843,3126.6,3125.6,123.95537667]
[1732111597950,3.19859,3126.4,3125.6,123.95537667]
[1732111598134,3.19841,3126.6,3126.1,3.19886]
[1732111598329,3.19855,3126.5,3125.9,0.7955]
[1732111598534,3.19744,3127.5,3126.8,3.19807]
[1732111598743,0.3044,3127.8,3127.1,3.19776]
[1732111598958,3.50154,3127.8,3127.2,3.19766]
[1732111599273,3.19687,3128.1,3127.5,3.19738]
[1732111599473,6.39379,3128.1,3127.5,3.19738]
[1732111599673,3.19683,3128.1,3127.3,0.8019]
[1732111599969,3.19668,3128.3,3127.6,3.19733]
[1732111600178,3.19668,3128.3,3127.4,3.19751]
[1732111600179,0.3044,3128.1,3127.4,1.5988]
[1732111600360,3.1971,3127.9,3127.4,1.5988]
[1732111600563,3.19683,3128.1,3127.5,0.7529]
[1732111600760,3.19693,3128.0,3127.5,0.7529]
[1732111601079,3.19656,3128.4,3127.6,1.5987]
[1732111601378,3.19656,3128.4,3127.7,3.19722]
[1732111601687,3.19642,3128.5,3127.9,3.96335]
[1732111601837,3.19633,3128.6,3128.0,3.19684]
[1732111602042,0.1430989,3128.8,3128.2,4.55539037]
[1732111602374,0.1430989,3128.8,3128.4,3.19651]
[1732111602565,0.1430989,3128.8,3128.3,3.19662]
[1732111602765,0.1430989,3128.8,3128.2,0.7746]
[1732111602941,0.1430989,3128.8,3128.6,3.19626]
[1732111603144,0.1430989,3128.8,3128.2,0.80655979]
[1732111603145,0.1430989,3128.8,3128.2,3.97129]
[1732111603450,0.1430989,3128.8,3128.2,0.7746]
[1732111603650,0.1430989,3128.8,3128.0,4.79541]
[1732111603974,3.19642,3128.5,3128.0,4.79541]
[1732111604143,3.19642,3128.5,3128.0,1.5985]
[1732111604671,3.19654,3128.4,3128.0,1.5985]
[1732111604849,3.1964,3128.6,3128.0,1.5985]
[1732111605056,0.65357389,3128.6,3128.0,1.5985]
[1732111605251,3.19682,3128.1,3128.0,1.5985]
[1732111605472,3.50122,3128.1,3128.0,1.5985]
[1732111607111,3.19682,3128.1,3128.0,1.5985]
[1732111607867,3.19671,3128.3,3128.0,1.5985]
[1732111608200,3.3044,3128.7,3128.0,1.5985]
[1732111608201,3.19628,3128.7,3128.0,1.5985]
[1732111608381,0.1430989,3128.8,3128.3,3.9918]
[1732111608561,0.1430989,3128.8,3128.3,0.7952]
[1732111608957,0.1430989,3128.8,3128.5,3.19636]
[1732111609221,0.1430989,3128.8,3128.5,3.595516]
[1732111609399,0.1430989,3128.8,3128.6,3.19631]
[1732111609889,0.1430989,3128.8,3128.6,3.1963]
[1732111610090,0.1430989,3128.8,3128.7,3.19621]
[1732111610304,0.1430989,3128.8,3128.7,1.5981]
[1732111613484,3.3392089,3128.8,3128.7,1.5981]
[1732111613685,3.70356979,3128.8,3128.7,1.5981]
[1732111614786,6.70356979,3128.8,3128.7,1.5981]
[1732111615600,3.70356979,3128.8,3128.7,1.5981]
[1732111616417,0.1430989,3128.8,3128.7,1.5981]
[1732111616929,3.3392089,3128.8,3128.7,1.5981]
[1732111618177,3.19631,3128.6,3127.0,0.788]
[1732111618529,3.19776,3127.2,3127.0,0.788]
[1732111618684,3.19765,3127.3,3127.0,0.788]
[1732111619191,3.19748,3127.5,3127.0,3.98594]
[1732111619390,3.1972,3127.8,3127.0,0.788]
[1732111619618,3.19699,3128.0,3127.3,3.19756]
[1732111619918,3.50096,3128.4,3127.5,3.19737]
[1732111620119,3.19656,3128.4,3127.6,3.516977]
[1732111620330,3.19631,3128.6,3127.7,0.8144]
[1732111620479,3.19631,3128.6,3127.9,3.19701]
[1732111620681,3.19658,3128.4,3127.7,4.01156]
[1732111620917,0.4474989,3128.8,3127.7,0.8144]
[1732111621241,3.19655,3128.4,3127.7,0.8144]
[1732111621384,4.22828927,3128.8,3127.8,3.19707]
[1732111621584,3.19652,3128.4,3127.8,3.19707]
[1732111621812,3.19668,3128.3,3127.7,4.01156]
[1732111622142,3.19652,3128.4,3127.8,3.19711]
[1732111622724,0.1430989,3128.8,3127.9,0.03196622]
[1732111622933,0.1430989,3128.8,3128.4,0.7914]
[1732111623580,0.1430989,3128.8,3128.7,3.19621]
[1732111624500,0.1430989,3128.8,3128.7,3.97201]
[1732111625587,3.19469,3130.2,3128.7,3.7758]
[1732111625786,3.195,3129.9,3129.4,3.19544]
[1732111626037,0.3044,3130.4,3129.5,3.19538]
[1732111626038,3.19474,3130.2,3129.5,3.19538]
[1732111626238,3.19475,3130.2,3129.5,0.8059]
[1732111626449,3.19442,3130.5,3129.6,3.19528]
[1732111626590,3.19443,3130.5,3129.8,3.19507]
[1732111626791,3.19417,3130.7,3129.9,3.19498]
[1732111626990,3.19445,3130.5,3129.9,3.19498]
[1732111627222,3.19445,3130.5,3129.6,3.19525]
[1732111627223,3.1942,3130.7,3129.5,0.8059]
[1732111627535,0.3044,3130.8,3129.5,0.8059]
[1732111627536,3.19437,3130.5,3129.6,3.19521]
[1732111627685,3.1947,3130.2,3129.6,3.19521]
[1732111627902,3.1945,3130.4,3129.6,3.19521]
[1732111628102,0.31945,3130.3,3129.8,3.19508]
[1732111628304,3.49851,3130.8,3130.0,3.19479]
[1732111628629,3.19411,3130.8,3130.2,3.19468]
[1732111628806,3.19411,3130.8,3130.0,3.19483]
[1732111628807,3.19376,3131.1,3130.4,3.19447]
[1732111629011,0.4474989,3131.9,3130.5,3.19429]
[1732111629343,3.19366,3131.2,3130.3,4.00618]
[1732111629552,3.19346,3131.4,3130.4,3.19445]
[1732111629706,0.56360857,3131.2,3130.4,3.19445]
[1732111629909,0.56360857,3131.2,3130.5,3.19437]
[1732111630346,5.63618568,3131.3,3130.4,3.19447]
[1732111630740,5.63618568,3131.3,3130.5,3.19434]
[1732111631310,2.44262568,3131.3,3130.5,3.19434]
[1732111631628,0.24426257,3131.2,3130.7,3.1941]
[1732111632360,0.24426257,3131.2,3130.5,3.1943]
[1732111632539,0.24426257,3131.2,3130.7,3.19417]
[1732111633061,0.26868883,3131.1,3130.7,3.19417]
[1732111633438,0.26868883,3131.1,3130.7,6.38826]
[1732111633611,0.26868883,3131.1,3130.7,3.19409]
[1732111633950,2.44262568,3131.3,3130.7,3.19409]
[1732111634456,2.44262568,3131.3,3130.8,1.597]
[1732111634613,2.44262568,3131.3,3130.9,3.19395]
[1732111635124,2.44262568,3131.3,3131.1,3.1937]
[1732111635325,2.44262568,3131.3,3130.9,3.19396]
[1732111635543,2.44262568,3131.3,3131.1,3.19375]
[1732111635868,2.44262568,3131.3,3130.5,3.19431]
[1732111635869,3.19427,3130.6,3129.9,3.19492]
[1732111636030,0.3044,3130.9,3130.1,3.19471]
[1732111636376,2.44262568,3131.3,3130.6,3.19425]
[1732111636829,2.44262568,3131.3,3130.8,3.19401]
[1732111637030,2.44262568,3131.3,3130.8,0.7877]
[1732111637233,2.68688825,3131.3,3130.8,0.7877]
[1732111637583,2.44262568,3131.3,3131.2,3.19366]
[1732111638980,0.1430989,3131.9,3131.8,3.19305]
[1732111639186,0.1430989,3131.9,3131.8,4.00625]
[1732111639423,0.1430989,3131.9,3131.8,7.03817294]
[1732111639711,0.1430989,3131.9,3131.8,7.00625]
[1732111639874,0.1430989,3131.9,3131.8,5.60275]
[1732111640077,0.1430989,3131.9,3131.8,2.4097]
[1732111640292,0.1430989,3131.9,3131.8,1.5965]
[1732111640912,0.1430989,3131.9,3131.8,5.54195]
[1732111641116,0.1430989,3131.9,3131.8,5.57387104]
[1732111641407,0.1430989,3131.9,3131.8,8.57387104]
[1732111641699,0.1430989,3131.9,3131.8,5.54195]
[1732111642005,0.1430989,3131.9,3131.8,2.3489]
[1732111642807,0.1430989,3131.9,3131.8,5.54195]
[1732111643610,0.1430989,3131.9,3131.8,2.3489]
[1732111643938,0.1430989,3131.9,3131.8,5.54195]
[1732111644835,0.1430989,3131.9,3131.8,1.5965]
[1732111645034,30.1430989,3131.9,3131.8,1.5965]
[1732111645240,36.35034879,3131.9,3131.8,1.5965]
[1732111645990,30.1430989,3131.9,3131.8,1.5965]
[1732111646508,33.3360389,3131.9,3131.8,1.5965]
[1732111648598,30.1430989,3131.9,3131.8,1.5965]
[1732111648902,33.3360389,3131.9,3131.8,1.5965]
[1732111649941,33.3360389,3131.9,3131.8,134.3752]
[1732111650109,36.47703837,3131.9,3131.8,134.3752]
[1732111650656,30.1430989,3131.9,3131.8,134.3752]
[1732111651651,30.1430989,3131.9,3131.8,138.05634]
[1732111652036,30.1430989,3131.9,3131.8,135.1826]
[1732111652349,30.1430989,3131.9,3131.8,138.05634]
[1732111652861,30.1430989,3131.9,3131.8,141.05634]
[1732111653146,26.1431989,3131.9,3131.8,144.76733947]
[1732111653347,22.1432989,3131.9,3131.8,144.76733947]
[1732111653549,3.19091,3133.9,3132.8,2.87281]
[1732111653853,3.19091,3133.9,3132.2,2.87335]
[1732111653854,0.3773039,3133.9,3132.9,4.46871]
[1732111654036,3.19137,3133.5,3132.9,4.46871]
[1732111654210,3.1915,3133.4,3132.9,1.596]
[1732111654413,3.19159,3133.3,3132.9,1.596]
[1732111654651,0.319137,3133.4,3132.9,1.596]
[1732111654818,3.19135,3133.5,3132.9,4.46871]
[1732111655253,3.19143,3133.4,3132.9,4.46871]
[1732111655550,3.19127,3133.6,3133.0,2.87261]
[1732111655848,0.319135,3133.5,3133.2,2.87245]
[1732111656004,0.319135,3133.5,3133.3,1.5958]
[1732111656208,0.7716349,3133.8,3133.3,1.5958]
[1732111656536,3.19127,3133.6,3133.3,1.5958]
[1732111656740,3.19105,3133.8,3133.3,1.5958]
[1732111656908,3.19139,3133.5,3133.3,1.5958]
[1732111657107,3.19142,3133.4,3133.3,1.5958]
[1732111657457,3.19127,3133.6,3133.3,1.5958]
[1732111657748,3.19072,3134.1,3133.3,1.5958]
[1732111657749,3.19077,3134.1,3133.4,0.8135]
[1732111657905,3.19056,3134.3,3133.5,2.87212]
[1732111658114,3.19056,3134.3,3133.7,2.87195]
[1732111658314,0.319056,3134.2,3133.5,4.46782]
[1732111658568,3.509686,3134.2,3133.6,2.87208]
[1732111658710,3.19034,3134.5,3133.6,2.87208]
[1732111658711,3.19051,3134.3,3133.6,2.87208]
[1732111658916,3.19051,3134.3,3133.7,2.87194]
[1732111659110,3.828595,3134.3,3133.5,4.46782]
[1732111659316,3.9846,3134.6,3133.9,2.87175]
[1732111659627,3.9846,3134.6,3134.0,1.5954]
[1732111659628,1.19286,3134.6,3134.0,1.5954]
[1732111659831,3.19031,3134.5,3134.0,1.5954]
[1732111660453,0.7944,3134.6,3134.0,1.5954]
[1732111660656,3.19034,3134.5,3134.0,1.5954]
[1732111660877,0.7944,3134.6,3134.0,4.46705]
[1732111661157,0.398456,3134.5,3134.0,1.5954]
[1732111661467,0.1430989,3135.1,3135.0,2.87081]
[1732111662315,0.1430989,3135.1,3135.0,1.5949]
[1732111662568,0.1430989,3135.1,3135.0,4.46571]
[1732111662876,0.09915803,3135.2,3135.0,4.46571]
[1732111662877,0.09915803,3135.2,3135.0,2.9209569]
[1732111663077,0.09915803,3135.2,3135.0,2.3895]
[1732111663222,0.09915803,3135.2,3135.1,2.87072]
[1732111663563,0.09915803,3135.2,3135.1,1.5948]
[1732111663860,0.03259172,3135.2,3135.1,9.27888723]
[1732111664081,0.11870896,3136.6,3135.9,0.8309]
[1732111664382,3.18813,3136.7,3136.0,4.46429]
[1732111664561,0.318806,3136.6,3136.1,2.86979]
[1732111664766,0.7648,3137.6,3136.1,0.02744284]
[1732111665058,3.18776,3137.0,3136.2,4.46401]
[1732111665263,3.6390939,3137.5,3136.5,2.86942]
[1732111665430,3.62780939,3137.4,3136.6,0.03187508]
[1732111665651,0.44038939,3137.4,3136.7,0.8242]
[1732111665838,0.7986,3138.0,3136.8,0.03187435]
[1732111666057,3.18723,3137.6,3136.8,2.90096435]
[1732111666267,3.18735,3137.4,3136.8,0.03187435]
[1732111666470,0.318701,3137.7,3136.9,1.5939]
[1732111666623,3.18706,3137.7,3136.9,1.5939]
[1732111667019,3.18706,3137.7,3136.9,4.46296]
[1732111667334,3.18684,3137.9,3136.9,4.46296]
[1732111667532,0.398544,3137.8,3136.9,4.46297]
[1732111667755,0.398544,3137.8,3137.2,0.7583]
[1732111667938,3.18664,3138.1,3137.3,0.01985533]
[1732111668153,0.8239,3138.6,3137.3,0.01985533]
[1732111668154,3.3296689,3138.2,3137.3,1.61355533]
[1732111668321,3.3296789,3138.2,3137.4,2.86861]
[1732111668659,3.3296789,3138.2,3137.5,1.61674254]
[1732111668826,3.18664,3138.1,3137.5,1.61674254]
[1732111669018,0.1430989,3138.2,3137.6,0.7812]
[1732111669220,0.1430989,3138.2,3137.7,0.02314106]
[1732111669501,0.1430989,3138.2,3137.6,0.7812]
[1732111669693,0.1430989,3138.2,3137.5,1.5936]
[1732111669694,3.3296989,3138.2,3137.5,1.5936]
[1732111669859,3.18677,3138.0,3137.5,1.5936]
[1732111670047,3.18687,3137.9,3137.5,1.5936]
[1732111670263,3.18678,3138.0,3137.5,1.5936]
[1732111670487,0.69268088,3138.0,3137.5,1.5936]
[1732111670688,0.1430989,3138.2,3137.6,2.86842]
[1732111670897,3.3296589,3138.2,3137.5,1.5936]
[1732111671053,0.1430989,3138.2,3137.7,0.0318627]
[1732111671259,0.1430989,3138.2,3137.8,0.7638]
[1732111671480,3.18633,3138.4,3137.8,0.7638]
[1732111671682,0.7979,3139.2,3137.8,0.7638]
[1732111671878,3.18624,3138.5,3137.8,3.63204]
[1732111672081,3.18603,3138.7,3138.0,2.868]
[1732111672296,3.18565,3139.1,3138.3,2.86773]
[1732111672495,0.7749,3139.6,3138.5,2.86759]
[1732111672651,3.18533,3139.4,3138.7,2.86735]
[1732111672854,3.18513,3139.6,3138.9,0.7906]
[1732111673110,0.637023,3139.6,3138.9,3.65782]
[1732111673308,3.18507,3139.7,3139.0,1.5929]
[1732111673309,3.18503,3139.7,3139.0,1.5929]
[1732111673511,3.18503,3139.7,3139.1,0.03183479]
[1732111673724,3.18484,3139.9,3139.1,0.03183479]
[1732111673873,3.580801,3139.9,3139.2,1.5928]
[1732111674074,3.18484,3139.9,3139.2,1.5928]
[1732111674776,3.18488,3139.9,3139.2,1.5928]
[1732111674975,3.18488,3139.9,3139.3,0.03183094]
[1732111675176,3.18463,3140.1,3139.3,0.03183094]
[1732111675482,3.18461,3140.1,3139.4,1.5927]
[1732111675709,0.318463,3140.0,3139.4,1.5927]
[1732111675876,3.18482,3139.9,3139.4,1.5927]
[1732111676413,0.7827,3140.5,3139.4,1.5927]
[1732111676414,3.18522,3139.5,3139.4,1.5927]
[1732111676619,3.503742,3139.5,3139.4,1.5927]
[1732111677124,0.11879229,3140.9,3139.5,0.7551]
[1732111677285,3.18469,3140.1,3139.6,0.02916728]
[1732111677485,0.833,3140.8,3139.6,1.5926]
[1732111677694,3.18448,3140.3,3139.7,0.02916542]
[1732111678003,0.11925637,3141.2,3139.7,0.02916542]
[1732111678004,3.1841,3140.6,3139.7,0.02916542]
[1732111678187,3.1841,3140.6,3139.8,1.5925]
[1732111678391,3.18398,3140.8,3139.9,0.03140965]
[1732111678714,3.1842,3140.5,3140.1,0.7551]
[1732111679026,3.502328,3140.8,3140.1,0.7551]
[1732111679027,3.18412,3140.6,3140.1,0.7551]
[1732111679233,3.18432,3140.4,3140.1,0.7551]
[1732111679394,3.18461,3140.1,3140.0,1.5924]
[1732111680126,8.12148763,3140.1,3140.0,4e-05]
[1732111680308,3.18633,3138.5,3138.2,0.7948]
[1732111680506,3.1864,3138.4,3138.2,0.7948]
[1732111680722,7.32579763,3139.5,3138.2,0.7948]
[1732111680723,3.18571,3139.1,3138.2,0.7948]
[1732111680931,0.73257976,3139.4,3138.6,2.86751]
[1732111681095,3.18543,3139.3,3138.3,0.03185493]
[1732111681300,0.637066,3139.3,3138.7,2.86739]
[1732111681619,0.637066,3139.3,3138.6,0.03185494]
[1732111681822,3.822486,3139.3,3138.4,2.86764]
[1732111682154,3.30116941,3140.5,3138.3,0.03185341]
[1732111682155,0.7849,3140.4,3139.1,2.86699]
[1732111682345,3.18483,3139.9,3139.2,2.89879948]
[1732111682499,3.503433,3139.8,3138.8,2.89917813]
[1732111682842,3.18481,3139.9,3138.9,1.5927]
[1732111683007,3.18481,3139.9,3139.1,2.86698]
[1732111683008,0.318481,3139.8,3139.1,2.86698]
[1732111683210,3.18421,3140.5,3139.7,2.86646]
[1732111683521,3.18421,3140.5,3139.9,0.8022]
[1732111683522,3.18442,3140.3,3139.9,0.8022]
[1732111683928,0.318421,3140.4,3140.0,1.5924]
[1732111684235,3.18382,3140.9,3140.0,1.62424182]
[1732111684510,3.98739,3141.1,3140.4,2.86585]
[1732111684640,0.1430989,3141.3,3140.4,2.86585]
[1732111684641,0.398739,3141.0,3140.4,2.86585]
[1732111684857,0.1430989,3141.3,3140.8,2.86544]
[1732111685012,3.18361,3141.1,3140.6,0.785]
[1732111685218,0.28267089,3141.1,3140.9,1.5919]
[1732111685412,3.18369,3141.0,3140.9,1.5919]
[1732111685650,0.28267089,3141.1,3140.9,2.3733]
[1732111685914,3.3265089,3141.3,3140.9,2.3733]
[1732111685915,0.1430989,3141.3,3140.9,2.3733]
[1732111686153,0.1430989,3141.3,3140.9,5.27051152]
[1732111686357,0.1430989,3141.3,3140.9,2.40513152]
[1732111686541,0.1430989,3141.3,3141.0,0.03182909]
[1732111686854,0.1430989,3141.3,3141.1,1.5918]
[1732111687375,0.1430989,3141.3,3141.2,2.89696804]
[1732111687654,0.1430989,3141.3,3141.2,1.62352804]
[1732111687861,0.1430989,3141.3,3141.2,4.48866804]
[1732111688066,0.1430989,3141.3,3141.2,9.02246484]
[1732111688215,0.1430989,3141.3,3141.2,8.9906368]
[1732111688416,0.1430989,3141.3,3141.2,8.25524]
[1732111689841,0.1430989,3141.3,3141.2,5.25524]
[1732111690046,0.1430989,3141.3,3141.2,2.42192663]
[1732111690257,0.1430989,3141.3,3141.2,1.5917]
[1732111690760,0.1430989,3141.3,3141.2,4.4886683]
[1732111691114,0.1430989,3141.3,3141.2,4.45684]
[1732111691518,0.1430989,3141.3,3141.2,5.27356675]
[1732111692058,0.1430989,3141.3,3141.2,9.37497142]
[1732111692359,0.1430989,3141.3,3141.2,9.36314467]
[1732111692862,0.4995,3142.0,3141.8,2.86459]
[1732111693041,0.4995,3142.0,3141.9,3.6337]
[1732111693249,0.4995,3142.0,3141.9,2.3606]
[1732111694075,0.4995,3142.0,3141.9,5.2251]
[1732111694636,0.4995,3142.0,3141.9,1.5914]
[1732111695527,3.68218,3142.0,3141.9,1.5914]
[1732111695945,0.4995,3142.0,3141.9,1.5914]
[1732111696147,0.4995,3142.0,3141.9,1.5864]
[1732111697239,3.68218,3142.0,3141.9,1.5864]
[1732111697566,1.185974,3142.0,3141.9,1.5864]
[1732111698374,0.4995,3142.0,3141.9,1.5864]
[1732111698543,0.4995,3142.0,3141.9,4.4509]
[1732111699140,0.4995,3142.0,3141.9,7.4509]
[1732111699889,0.4995,3142.0,3141.9,7.4609]
[1732111700063,0.4995,3142.0,3141.9,8.0009]
[1732111700267,0.4995,3142.0,3141.9,7.4509]
[1732111700610,0.4995,3142.0,3141.9,4.4509]
[1732111700816,0.4995,3142.0,3141.9,1.5864]
[1732111701096,0.4995,3142.0,3141.9,4.4509]
[1732111701856,0.4995,3142.0,3141.9,8.26911]
[1732111702056,0.24975,3142.0,3141.9,12.98841]
[1732111702297,0.0513349,3142.6,3142.5,5.86396]
[1732111702502,0.0513349,3142.6,3142.5,9.466561]
[1732111702715,3.18012,3144.6,3143.0,0.7953]
[1732111702857,3.18021,3144.5,3143.1,2.86341]
[1732111703059,3.18021,3144.5,3143.1,7.45921]
[1732111703371,4.0116,3144.7,3143.1,7.45921]
[1732111703372,6.36084,3144.3,3143.1,7.45921]
[1732111703564,3.1802,3144.5,3143.1,7.45921]
[1732111703872,3.18037,3144.3,3143.1,8.572012]
[1732111704075,3.18037,3144.3,3143.1,7.45921]
[1732111704277,3.18027,3144.4,3143.1,7.45921]
[1732111704598,3.18032,3144.4,3143.1,7.45921]
[1732111704763,3.18043,3144.3,3143.1,7.45921]
[1732111704963,0.8316,3144.7,3143.1,4.45921]
[1732111704964,3.18052,3144.2,3143.1,4.45921]
[1732111705401,3.18036,3144.3,3143.1,4.45921]
[1732111705699,3.1801,3144.6,3143.1,4.45921]
[1732111705913,0.8316,3144.7,3143.1,4.45921]
[1732111706063,3.18029,3144.4,3143.1,4.45921]
[1732111706407,3.18013,3144.6,3143.1,4.45921]
[1732111706709,3.17975,3144.9,3143.7,2.86279]
[1732111707006,3.17975,3144.9,3144.1,2.86242]
[1732111707228,1.165148,3145.0,3144.1,2.89421337]
[1732111707513,0.8452,3145.0,3144.3,2.86226]
[1732111707686,0.8452,3145.0,3144.4,0.03179033]
[1732111707889,1.247681,3145.0,3144.4,1.62689033]
[1732111708145,0.422481,3145.0,3144.4,4.48905033]
[1732111708312,0.02,3145.0,3144.4,4.48905033]
[1732111708829,0.02,3145.0,3144.6,2.86204]
[1732111708978,0.1484664,3145.9,3144.4,1.62689033]
[1732111708979,0.071,3147.6,3147.3,0.01]
[1732111709177,0.00174023,3147.3,3146.8,2.86004]
[1732111709378,0.071,3147.6,3147.4,1.59185977]
[1732111709637,3.93282,3147.5,3147.4,1.59185977]
[1732111710901,0.7557,3147.5,3147.4,1.59185977]
[1732111711106,3.17712,3147.5,3147.4,1.59185977]
[1732111712741,3.94882,3147.5,3147.4,1.59185977]
[1732111713038,3.17755,3147.1,3145.9,2.86085]
[1732111713245,3.17755,3147.1,3145.4,0.01]
[1732111713246,0.317755,3147.0,3146.0,0.02259121]
[1732111713394,3.17803,3146.6,3146.0,0.02259121]
[1732111713595,3.17803,3146.6,3145.7,2.86104]
[1732111713791,0.7717,3147.3,3146.1,1.5892]
[1732111713996,3.17512,3149.5,3148.5,0.01]
[1732111714196,3.17542,3149.2,3148.9,0.01]
[1732111714431,0.48085504,3149.1,3148.7,0.03175254]
[1732111714653,3.17575,3148.9,3148.8,0.01]
[1732111714851,3.17575,3148.9,3148.8,1.5979]
[1732111715022,0.1484664,3149.1,3148.8,1.5979]
[1732111715229,0.1484664,3149.1,3148.9,0.01]
[1732111715452,3.3240164,3149.1,3149.0,1.5878]
[1732111715659,0.1484664,3149.1,3149.0,1.5878]
[1732111715825,3.3239764,3149.1,3149.0,1.5878]
[1732111716010,0.48086404,3149.1,3149.0,1.5878]
[1732111716214,3.3239764,3149.1,3149.0,1.5878]
[1732111716410,0.1484664,3149.1,3149.0,4.92048]
[1732111716650,0.1484664,3149.1,3149.0,2.41174451]
[1732111717214,0.1484664,3149.1,3149.0,3.06597672]
[1732111717416,0.1484664,3149.1,3149.0,2.80875394]
[1732111717670,0.1484664,3149.1,3149.0,2.41174451]
[1732111718016,0.1484664,3149.1,3149.0,4.95222451]
[1732111718222,0.1484664,3149.1,3149.0,2.83125394]
[1732111718417,3.94566,3150.7,3149.8,0.01]
[1732111718726,3.94566,3150.7,3149.9,1.5974]
[1732111718727,0.7717,3150.7,3149.9,1.5974]
[1732111718953,0.7717,3150.7,3150.0,0.03173783]
[1732111718954,3.1745,3150.1,3150.0,0.03173783]
[1732111719256,3.1745,3150.1,3149.5,0.03173783]